fUST/lending_fUST_20250221
["ID","MTS","AMOUNT","RATE_DAILY","PERIOD"]
[353817533,1740076257486,-500.0,0.00014273,2]
[353817534,1740076257497,-500.0,0.00014273,2]
[353817535,1740076257507,-500.0,0.00014273,2]
[353817536,1740076257516,-500.0,0.00014273,2]
[353817537,1740076257526,-793.63,0.00014273,2]
[353817538,1740076257535,-152.137845,0.00014273,2]
[353817539,1740076257546,-151.0,0.00014273,2]
[353817540,1740076257556,-259.839137,0.00014273,2]
[353817541,1740076257566,-500.0,0.00014273,2]
[353817542,1740076257575,-500.0,0.00014273,2]
[353817543,1740076257585,-807.41,0.00014273,2]
[353817544,1740076257595,-565.76,0.00014273,2]
[353817545,1740076257604,-500.0,0.00014273,2]
[353817546,1740076257614,-151.0,0.00014273,2]
[353817547,1740076257623,-500.0,0.00014273,2]
[353817548,1740076257633,-625.95,0.00014273,2]
[353817549,1740076257643,-500.0,0.00014273,2]
[353817550,1740076257655,-500.0,0.00014273,2]
[353817551,1740076257674,-151.0,0.00014273,2]
[353817552,1740076257684,-10409.39,0.00014273,2]
[353817553,1740076257694,-500.0,0.00014273,2]
[353817554,1740076257704,-605.73,0.00014273,2]
[353817555,1740076257718,-17685.15,0.00014273,2]
[353817556,1740076257729,-500.0,0.00014273,2]
[353817557,1740076257742,-500.0,0.00014273,2]
[353817558,1740076257753,-500.0,0.00014273,2]
[353817559,1740076257762,-500.0,0.00014273,2]
[353817560,1740076257771,-3965.85,0.00014273,2]
[353817561,1740076257781,-651.6,0.00014273,2]
[353817562,1740076257790,-2324.79,0.00014273,2]
[353817563,1740076257800,-3893.67,0.00014273,2]
[353817564,1740076257809,-729.57,0.00014273,2]
[353817565,1740076257819,-907.2,0.00014273,2]
[353817566,1740076257828,-825.36,0.00014273,2]
[353817567,1740076257838,-2151.45,0.00014273,2]
[353817568,1740076257848,-500.0,0.00014273,2]
[353817569,1740076257858,-500.0,0.00014273,2]
[353817570,1740076257867,-1651.3,0.00014273,2]
[353817571,1740076257876,-1126.07,0.00014273,2]
[353817572,1740076257885,-500.0,0.00014273,2]
[353817573,1740076257894,-635.52,0.00014273,2]
[353817574,1740076257904,-1346.93,0.00014273,2]
[353817575,1740076257914,-500.0,0.00014273,2]
[353817576,1740076257924,-1388.89,0.00014273,2]
[353817577,1740076257934,-40099.78573166,0.00014273,2]
[353817578,1740076258046,-500.0,0.00013698,2]
[353817579,1740076258055,-500.0,0.00013698,2]
[353817580,1740076258065,-500.0,0.0001378,2]
[353817581,1740076258075,-407.92801108,0.0001378,2]
[353817582,1740076258086,-92.07198892,0.0001378,2]
[353817583,1740076258096,-500.0,0.00013863,2]
[353817584,1740076258106,-151.0,0.00014191,2]
[353817585,1740076258115,-1087.02801008,0.00014273,2]
[353817586,1740076258319,-500.0,0.00013698,2]
[353817587,1740076258330,-500.0,0.00013698,2]
[353817588,1740076258339,-222.874998,0.00013698,2]
[353817589,1740076258356,-49.44720155,0.00013698,2]
[353817590,1740076258366,-500.0,0.0001378,2]
[353817591,1740076258378,-151.0,0.00014191,2]
[353817592,1740076258388,-5849.42625826,0.00014273,2]
[353817593,1740076258398,-12227.72654019,0.00014273,2]
[353817595,1740076562411,324.533942,9.041e-05,2]
[353817622,1740076926351,1000.0,0.00019,120]
[353817658,1740077432497,-1000.0,0.00013,4]
[353817659,1740077432507,-700.0,0.00013068,2]
[353817660,1740077432517,-204.0,0.000131,2]
[353817661,1740077432526,-204.0,0.000131,2]
[353817662,1740077432535,-300.0,0.00013696,2]
[353817663,1740077432544,-500.0,0.00013697,2]
[353817664,1740077432554,-500.0,0.00013697,2]
[353817665,1740077432565,-500.0,0.00013697,2]
[353817666,1740077432575,-500.0,0.00013697,2]
[353817667,1740077432584,-417.30102186,0.00013697,2]
[353817668,1740077432593,-500.0,0.00013697,2]
[353817669,1740077432604,-500.0,0.00013698,2]
[353817670,1740077432616,-500.0,0.00013698,2]
[353817671,1740077432625,-500.0,0.00013698,2]
[353817672,1740077432634,-501.30971949,0.00013698,2]
[353817673,1740077432644,-500.0,0.00013698,2]
[353817674,1740077432654,-500.0,0.00013698,2]
[353817675,1740077432663,-36.05514205,0.00013698,2]
[353817695,1740077438397,-463.94485795,0.00013698,2]
[353817696,1740077438407,-164.89384226,0.00013698,2]
[353817697,1740077438417,-586.16433757,0.00013698,2]
[353817698,1740077438426,-500.0,0.00013698,2]
[353817699,1740077438435,-500.0,0.00013698,2]
[353817700,1740077438444,-500.0,0.00013698,2]
[353817701,1740077438454,-500.0,0.00013698,2]
[353817702,1740077438463,-504.04029848,0.00013698,2]
[353817703,1740077438473,-500.0,0.00013698,2]
[353817704,1740077438483,-500.0,0.00013698,2]
[353817705,1740077438492,-500.0,0.00013698,2]
[353817706,1740077438501,-472.19035724,0.00013698,2]
[353817707,1740077438512,-500.0,0.00013698,2]
[353817708,1740077438522,-500.0,0.00013698,2]
[353817709,1740077438531,-500.0,0.00013698,2]
[353817710,1740077438540,-506.67497748,0.00013698,2]
[353817711,1740077438550,-500.0,0.00013698,2]
[353817712,1740077438559,-500.0,0.00013698,2]
[353817713,1740077438568,-500.0,0.00013698,2]
[353817714,1740077438577,-500.0,0.00013698,2]
[353817715,1740077438587,-500.0,0.00013698,2]
[353817716,1740077438596,-500.0,0.00013698,2]
[353817717,1740077438606,-500.0,0.00013698,2]
[353817718,1740077438615,-500.0,0.00013698,2]
[353817719,1740077438625,-500.0,0.00013698,2]
[353817720,1740077438635,-633.71,0.00013698,2]
[353817721,1740077438646,-500.0,0.00013698,2]
[353817722,1740077438656,-500.0,0.00013698,2]
[353817723,1740077438666,-500.0,0.00013698,2]
[353817724,1740077438675,-500.0,0.00013698,2]
[353817725,1740077438685,-500.0,0.00013698,2]
[353817726,1740077438694,-602.28,0.00013698,2]
[353817727,1740077438703,-500.0,0.00013698,2]
[353817728,1740077438712,-500.0,0.00013698,2]
[353817729,1740077438722,-500.0,0.00013698,2]
[353817730,1740077438733,-500.0,0.00013698,2]
[353817731,1740077438742,-500.0,0.00013698,2]
[353817732,1740077438752,-500.0,0.00013698,2]
[353817733,1740077438763,-506.58734621,0.00013698,2]
[353817734,1740077438772,-500.0,0.00013698,2]
[353817735,1740077438782,-605.27,0.00013698,2]
[353817736,1740077438792,-500.0,0.00013698,2]
[353817737,1740077438801,-500.0,0.00013698,2]
[353817738,1740077438810,-500.0,0.00013698,2]
[353817739,1740077438820,-503.79120332,0.00013698,2]
[353817740,1740077438829,-240.0,0.00013698,2]
[353817741,1740077438838,-500.0,0.00013698,2]
[353817742,1740077438847,-500.0,0.00013698,2]
[353817743,1740077438857,-500.0,0.00013698,2]
[353817744,1740077438867,-500.0,0.00013698,2]
[353817745,1740077438877,-500.0,0.00013698,2]
[353817746,1740077438886,-423.1100184,0.00013698,2]
[353817747,1740077438896,-500.0,0.00013698,2]
[353817748,1740077438905,-591.01742791,0.00013698,2]
[353817749,1740077438915,-500.0,0.00013698,2]
[353817750,1740077438924,-500.0,0.00013698,2]
[353817751,1740077438933,-274.90962687,0.00013698,2]
[353817752,1740077438946,-225.09037313,0.00013698,2]
[353817753,1740077438955,-397.52215029,0.00013698,2]
[353817754,1740077438965,-500.0,0.00013698,2]
[353817755,1740077438974,-500.0,0.00013698,2]
[353817756,1740077438983,-632.59268705,0.00013698,2]
[353817757,1740077438993,-460.83627383,0.00013698,2]
[353817758,1740077439002,-500.0,0.00013698,2]
[353817759,1740077439012,-500.0,0.00013698,2]
[353817760,1740077439022,-500.0,0.00013698,2]
[353817761,1740077439035,-500.0,0.00013698,2]
[353817762,1740077439044,-500.0,0.00013698,2]
[353817763,1740077439053,-502.81041958,0.00013698,2]
[353817764,1740077439062,-581.56511577,0.00013698,2]
[353817765,1740077439071,-500.0,0.00013698,2]
[353817766,1740077439082,-500.0,0.00013698,2]
[353817767,1740077439091,-500.0,0.00013698,2]
[353817768,1740077439100,-500.0,0.00013698,2]
[353817769,1740077439112,-563.359996,0.00013698,2]
[353817770,1740077439122,-500.0,0.00013698,2]
[353817771,1740077439131,-500.0,0.00013698,2]
[353817772,1740077439141,-627.30091157,0.00013698,2]
[353817773,1740077439150,-500.0,0.00013698,2]
[353817774,1740077439159,-245.24611621,0.00013698,2]
[353817775,1740077439168,-288.91763651,0.00013698,2]
[353817776,1740077439177,-500.0,0.00013698,2]
[353817777,1740077439187,-500.0,0.00013698,2]
[353817778,1740077439196,-165.87544267,0.00013698,2]
[353817779,1740077439206,-500.0,0.00013698,2]
[353817780,1740077439215,-500.0,0.00013698,2]
[353817781,1740077439225,-500.0,0.00013698,2]
[353817782,1740077439234,-500.0,0.00013698,2]
[353817783,1740077439244,-664.37,0.00013698,2]
[353817784,1740077439253,-500.0,0.00013698,2]
[353817785,1740077439264,-500.0,0.00013698,2]
[353817786,1740077439274,-500.0,0.00013698,2]
[353817787,1740077439283,-500.0,0.00013698,2]
[353817788,1740077439293,-868.35,0.00013698,2]
[353817789,1740077439302,-500.0,0.00013698,2]
[353817790,1740077439312,-500.0,0.00013698,2]
[353817791,1740077439321,-500.0,0.00013698,2]
[353817792,1740077439331,-500.0,0.00013698,2]
[353817793,1740077439341,-500.0,0.00013698,2]
[353817794,1740077439350,-500.0,0.00013698,2]
[353817795,1740077439360,-530.01,0.00013698,2]
[353817796,1740077439369,-1441.13,0.00013698,2]
[353817797,1740077439379,-500.0,0.00013698,2]
[353817798,1740077439389,-557.02,0.00013698,2]
[353817799,1740077439399,-500.0,0.00013698,2]
[353817800,1740077439409,-500.0,0.00013698,2]
[353817801,1740077439419,-500.0,0.00013698,2]
[353817802,1740077439428,-500.0,0.00013698,2]
[353817803,1740077439438,-500.0,0.00013698,2]
[353817804,1740077439448,-500.0,0.00013698,2]
[353817805,1740077439458,-500.0,0.00013698,2]
[353817806,1740077439467,-414.391,0.00013698,2]
[353817807,1740077439477,-1035.85,0.00013698,2]
[353817808,1740077439486,-500.0,0.00013698,2]
[353817809,1740077439495,-500.0,0.00013698,2]
[353817810,1740077439505,-596.47,0.00013698,2]
[353817811,1740077439516,-661.45,0.00013698,2]
[353817812,1740077439526,-500.0,0.00013698,2]
[353817813,1740077439536,-500.0,0.00013698,2]
[353817814,1740077439546,-500.0,0.00013698,2]
[353817815,1740077439556,-500.0,0.00013698,2]
[353817816,1740077439566,-500.0,0.00013698,2]
[353817817,1740077439576,-624.92639399,0.00013698,2]
[353817818,1740077439586,-500.0,0.00013698,2]
[353817819,1740077439596,-638.35,0.00013698,2]
[353817820,1740077439606,-500.0,0.00013698,2]
[353817821,1740077439616,-500.0,0.00013698,2]
[353817822,1740077439625,-500.0,0.00013698,2]
[353817823,1740077439636,-500.0,0.00013698,2]
[353817824,1740077439645,-500.0,0.00013698,2]
[353817825,1740077439655,-500.0,0.00013698,2]
[353817826,1740077439666,-500.0,0.00013698,2]
[353817827,1740077439676,-500.0,0.00013698,2]
[353817828,1740077439686,-708.23,0.00013698,2]
[353817829,1740077439695,-500.0,0.00013698,2]
[353817830,1740077439705,-500.0,0.00013698,2]
[353817831,1740077439715,-500.0,0.00013698,2]
[353817832,1740077439725,-547.99,0.00013698,2]
[353817833,1740077439735,-500.0,0.00013698,2]
[353817834,1740077439745,-643.73,0.00013698,2]
[353817835,1740077439755,-500.0,0.00013698,2]
[353817836,1740077439766,-500.0,0.00013698,2]
[353817837,1740077439776,-506.92400394,0.00013698,2]
[353817838,1740077439787,-500.0,0.00013698,2]
[353817839,1740077439796,-1109.9,0.00013698,2]
[353817840,1740077439806,-500.0,0.00013698,2]
[353817841,1740077439816,-500.0,0.00013698,2]
[353817842,1740077439827,-500.0,0.00013698,2]
[353817843,1740077439836,-266.96661005,0.00013698,2]
[353817844,1740077439847,-500.0,0.00013698,2]
[353817846,1740077439856,-500.0,0.00013698,2]
[353817847,1740077439866,-500.0,0.00013698,2]
[353817848,1740077439876,-505.32613227,0.00013698,2]
[353817849,1740077439886,-500.0,0.00013698,2]
[353817850,1740077439896,-503.27,0.00013698,2]
[353817851,1740077439907,-500.0,0.00013698,2]
[353817852,1740077439916,-501.09396162,0.00013698,2]
[353817853,1740077439926,-500.0,0.00013698,2]
[353817854,1740077439935,-500.0,0.00013698,2]
[353817855,1740077439945,-500.0,0.00013698,2]
[353817857,1740077439955,-500.0,0.00013698,2]
[353817859,1740077439964,-1365.79,0.00013698,2]
[353817860,1740077439974,-890.14,0.00013698,2]
[353817862,1740077439984,-500.0,0.00013698,2]
[353817864,1740077439994,-501.26461619,0.00013698,2]
[353817866,1740077440003,-500.0,0.00013698,2]
[353817868,1740077440015,-500.0,0.00013698,2]
[353817870,1740077440025,-500.0,0.00013698,2]
[353817871,1740077440038,-500.0,0.00013698,2]
[353817873,1740077440048,-500.0,0.00013698,2]
[353817875,1740077440057,-500.0,0.00013698,2]
[353817877,1740077440067,-500.0,0.00013698,2]
[353817879,1740077440076,-500.0,0.00013698,2]
[353817880,1740077440086,-500.0,0.00013698,2]
[353817882,1740077440096,-500.0,0.00013698,2]
[353817884,1740077440106,-500.0,0.00013698,2]
[353817885,1740077440115,-500.0,0.00013698,2]
[353817887,1740077440125,-500.0,0.00013698,2]
[353817889,1740077440135,-500.0,0.00013698,2]
[353817891,1740077440144,-500.0,0.00013698,2]
[353817893,1740077440154,-500.0,0.00013698,2]
[353817895,1740077440164,-727.5,0.00013698,2]
[353817897,1740077440174,-500.0,0.00013698,2]
[353817899,1740077440184,-500.0,0.00013698,2]
[353817901,1740077440193,-518.62,0.00013698,2]
[353817902,1740077440203,-500.0,0.00013698,2]
[353817904,1740077440212,-740.12,0.00013698,2]
[353817906,1740077440223,-500.0,0.00013698,2]
[353817908,1740077440233,-500.0,0.00013698,2]
[353817910,1740077440242,-500.0,0.00013698,2]
[353817911,1740077440251,-500.0,0.00013698,2]
[353817913,1740077440262,-515.95446293,0.00013698,2]
[353817915,1740077440272,-500.0,0.00013698,2]
[353817917,1740077440281,-500.0,0.00013698,2]
[353817918,1740077440291,-500.0,0.00013698,2]
[353817919,1740077440300,-500.0,0.00013698,2]
[353817920,1740077440309,-500.0,0.00013698,2]
[353817921,1740077440319,-500.0,0.00013698,2]
[353817922,1740077440329,-500.0,0.00013698,2]
[353817923,1740077440338,-500.0,0.00013698,2]
[353817924,1740077440347,-529.01,0.00013698,2]
[353817926,1740077440357,-500.0,0.00013698,2]
[353817928,1740077440366,-500.0,0.00013698,2]
[353817930,1740077440375,-500.0,0.00013698,2]
[353817932,1740077440384,-573.79,0.00013698,2]
[353817934,1740077440394,-523.65978823,0.00013698,2]
[353817936,1740077440403,-500.0,0.00013698,2]
[353817938,1740077440412,-500.0,0.00013698,2]
[353817940,1740077440422,-500.0,0.00013698,2]
[353817941,1740077440431,-229.8494914,0.00013698,2]
[353817944,1740077440441,-500.0,0.00013698,2]
[353817946,1740077440450,-500.92595492,0.00013698,2]
[353817948,1740077440459,-500.0,0.00013698,2]
[353817950,1740077440469,-500.0,0.00013698,2]
[353817952,1740077440478,-500.0,0.00013698,2]
[353817953,1740077440487,-500.0,0.00013698,2]
[353817955,1740077440496,-315.47875821,0.00013698,2]
[353817956,1740077440507,-508.50828585,0.00013698,2]
[353817957,1740077440516,-503.882769,0.00013698,2]
[353817958,1740077440525,-500.0,0.00013698,2]
[353817959,1740077440535,-9108.22,0.00013698,2]
[353817960,1740077440544,-404.48,0.00013698,2]
[353817961,1740077440553,-500.0,0.00013698,2]
[353817962,1740077440563,-507.29767178,0.00013698,2]
[353817963,1740077440572,-500.0,0.00013698,2]
[353817964,1740077440582,-500.0,0.00013698,2]
[353817965,1740077440592,-453.95044944,0.00013698,2]
[353817966,1740077440601,-506.73045002,0.00013698,2]
[353817967,1740077440611,-500.0,0.00013698,2]
[353817968,1740077440620,-500.0,0.00013698,2]
[353817969,1740077440630,-3470.12,0.00013698,2]
[353817970,1740077440640,-507.92340326,0.00013698,2]
[353817971,1740077440650,-509.15337383,0.00013698,2]
[353817972,1740077440661,-2034.19,0.00013698,2]
[353817973,1740077440671,-502.60023355,0.00013698,2]
[353817974,1740077440681,-500.0,0.00013698,2]
[353817975,1740077440690,-500.0,0.00013698,2]
[353817977,1740077440700,-500.0,0.00013698,2]
[353817979,1740077440709,-793.8,0.00013698,2]
[353817980,1740077440719,-500.0,0.00013698,2]
[353817982,1740077440729,-515.6339278,0.00013698,2]
[353817984,1740077440739,-638.37,0.00013698,2]
[353817986,1740077440749,-500.0,0.00013698,2]
[353817988,1740077440760,-3406.96,0.00013698,2]
[353817989,1740077440769,-500.0,0.00013698,2]
[353817990,1740077440778,-722.19,0.00013698,2]
[353817991,1740077440788,-500.0,0.00013698,2]
[353817992,1740077440797,-500.0,0.00013698,2]
[353817993,1740077440806,-500.0,0.00013698,2]
[353817994,1740077440816,-570.15,0.00013698,2]
[353817995,1740077440826,-1882.52,0.00013698,2]
[353817996,1740077440836,-500.0,0.00013698,2]
[353817997,1740077440848,-500.0,0.00013698,2]
[353817998,1740077440857,-563.01843799,0.00013698,2]
[353817999,1740077440867,-500.0,0.00013698,2]
[353818000,1740077440983,-1444.89,0.00013698,2]
[353818001,1740077440993,-629.65933361,0.00013698,2]
[353818002,1740077441003,-500.0,0.00013698,2]
[353818003,1740077441014,-501.24955235,0.00013698,2]
[353818004,1740077441024,-500.0,0.00013698,2]
[353818005,1740077441035,-500.0,0.00013698,2]
[353818006,1740077441045,-500.0,0.00013698,2]
[353818007,1740077441055,-523.26795905,0.00013698,2]
[353818008,1740077441064,-500.0,0.00013698,2]
[353818009,1740077441073,-556.08,0.00013698,2]
[353818010,1740077441082,-1178.56,0.00013698,2]
[353818011,1740077441091,-309.43324102,0.00013698,2]
[353818012,1740077441101,-500.0,0.00013698,2]
[353818013,1740077441111,-500.0,0.00013698,2]
[353818014,1740077441121,-506.44761698,0.00013698,2]
[353818015,1740077441131,-500.0,0.00013698,2]
[353818016,1740077441140,-500.0,0.00013698,2]
[353818017,1740077441150,-16808.24,0.00013698,2]
[353818018,1740077441159,-985.31,0.00013698,2]
[353818019,1740077441168,-2786.77,0.00013698,2]
[353818020,1740077441178,-630.850242,0.00013698,2]
[353818021,1740077441187,-500.0,0.00013698,2]
[353818022,1740077441196,-500.0,0.00013698,2]
[353818023,1740077441206,-1215.28,0.00013698,2]
[353818024,1740077441216,-556.94,0.00013698,2]
[353818025,1740077441225,-1191.46,0.00013698,2]
[353818026,1740077441235,-3073.52,0.00013698,2]
[353818027,1740077441244,-40867.69,0.00013698,2]
[353818028,1740077441254,-6841.19,0.00013698,2]
[353818029,1740077441264,-500.0,0.00013698,2]
[353818030,1740077441274,-2377.75,0.00013698,2]
[353818031,1740077441283,-500.0,0.00013698,2]
[353818032,1740077441292,-3817.15,0.00013698,2]
[353818033,1740077441302,-920.47,0.00013698,2]
[353818034,1740077441312,-500.0,0.00013698,2]
[353818035,1740077441321,-1283.52,0.00013698,2]
[353818036,1740077441334,-500.0,0.00013698,2]
[353818037,1740077441343,-521.88774525,0.00013698,2]
[353818038,1740077441353,-540.92187827,0.00013698,2]
[353818039,1740077441363,-500.0,0.00013698,2]
[353818040,1740077441373,-500.0,0.00013698,2]
[353818041,1740077441382,-500.0,0.00013698,2]
[353818042,1740077441391,-500.0,0.00013698,2]
[353818043,1740077441401,-500.0,0.00013698,2]
[353818044,1740077441410,-4061.03,0.00013698,2]
[353818045,1740077441420,-500.0,0.00013698,2]
[353818046,1740077441429,-535.64,0.00013698,2]
[353818047,1740077441439,-500.0,0.00013698,2]
[353818048,1740077441449,-500.0,0.00013698,2]
[353818049,1740077441459,-500.0,0.00013698,2]
[353818050,1740077441468,-500.0,0.00013698,2]
[353818051,1740077441478,-500.0,0.00013698,2]
[353818052,1740077441487,-2345.68,0.00013698,2]
[353818053,1740077441497,-500.0,0.00013698,2]
[353818054,1740077441507,-500.0,0.00013698,2]
[353818055,1740077441516,-500.0,0.00013698,2]
[353818056,1740077441525,-1779.96,0.00013698,2]
[353818057,1740077441535,-500.0,0.00013698,2]
[353818058,1740077441544,-500.0,0.00013698,2]
[353818059,1740077441553,-500.0,0.00013698,2]
[353818060,1740077441562,-500.0,0.00013698,2]
[353818061,1740077441571,-766.59,0.00013698,2]
[353818062,1740077441581,-156.10010583,0.00013698,2]
[353818063,1740077441591,-500.0,0.00013698,2]
[353818064,1740077441600,-500.0,0.00013698,2]
[353818065,1740077441610,-1327.91,0.00013698,2]
[353818066,1740077441619,-570.43118215,0.00013698,2]
[353818067,1740077441628,-500.0,0.00013698,2]
[353818068,1740077441637,-500.0,0.00013698,2]
[353818069,1740077441647,-500.0,0.00013698,2]
[353818070,1740077441657,-500.0,0.00013698,2]
[353818071,1740077441667,-1733.51,0.00013698,2]
[353818072,1740077441676,-500.0,0.00013698,2]
[353818073,1740077441686,-5133.29,0.00013698,2]
[353818074,1740077441695,-1849.39,0.00013698,2]
[353818075,1740077441705,-500.0,0.00013698,2]
[353818076,1740077441714,-2277.2,0.00013698,2]
[353818077,1740077441724,-500.0,0.00013698,2]
[353818078,1740077441734,-500.0,0.00013698,2]
[353818079,1740077441744,-500.0,0.00013698,2]
[353818080,1740077441754,-500.0,0.00013698,2]
[353818081,1740077441767,-1852.48,0.00013698,2]
[353818082,1740077441777,-500.0,0.00013698,2]
[353818083,1740077441787,-449.46208928,0.00013698,2]
[353818084,1740077441797,-500.0,0.00013698,2]
[353818085,1740077441806,-500.0,0.00013698,2]
[353818086,1740077441816,-500.0,0.00013698,2]
[353818087,1740077441825,-500.0,0.00013698,2]
[353818088,1740077441835,-763.89,0.00013698,2]
[353818089,1740077441844,-505.33559879,0.00013698,2]
[353818090,1740077441854,-500.0,0.00013698,2]
[353818091,1740077441863,-500.0,0.00013698,2]
[353818092,1740077441873,-500.0,0.00013698,2]
[353818093,1740077441882,-500.0,0.00013698,2]
[353818094,1740077441891,-1350.36,0.00013698,2]
[353818095,1740077441901,-500.0,0.00013698,2]
[353818096,1740077441910,-15474.5,0.00013698,2]
[353818097,1740077441919,-500.0,0.00013698,2]
[353818098,1740077441928,-150.0,0.00013742,2]
[353818099,1740077441938,-538.0,0.00013742,2]
[353818100,1740077441947,-1969.0,0.00013742,2]
[353818101,1740077441956,-2287.0,0.00013742,2]
[353818102,1740077441966,-7438.69753278,0.00013762,2]
[353818103,1740077441975,-500.0,0.00013779,2]
[353818104,1740077441984,-434.00279836,0.00013779,2]
[353818105,1740077441993,-500.0,0.00013779,2]
[353818106,1740077442004,-500.0,0.0001378,2]
[353818107,1740077442016,-500.0,0.0001378,2]
[353818108,1740077442025,-535.92652497,0.0001378,2]
[353818109,1740077442037,-526.45087494,0.0001378,2]
[353818110,1740077442046,-500.0,0.0001378,2]
[353818111,1740077442055,-275.73137706,0.0001378,2]
[353818112,1740077442065,-500.0,0.0001378,2]
[353818113,1740077442074,-500.0,0.0001378,2]
[353818114,1740077442084,-500.0,0.0001378,2]
[353818115,1740077442093,-500.0,0.0001378,2]
[353818116,1740077442103,-500.0,0.0001378,2]
[353818117,1740077442112,-328.59979022,0.0001378,2]
[353818118,1740077442121,-500.0,0.0001378,2]
[353818119,1740077442132,-500.0,0.0001378,2]
[353818120,1740077442142,-633.71,0.0001378,2]
[353818121,1740077442151,-500.0,0.0001378,2]
[353818122,1740077442161,-500.0,0.0001378,2]
[353818123,1740077442171,-602.28,0.0001378,2]
[353818124,1740077442180,-500.0,0.0001378,2]
[353818125,1740077442189,-500.0,0.0001378,2]
[353818126,1740077442199,-500.0,0.0001378,2]
[353818127,1740077442208,-605.27,0.0001378,2]
[353818128,1740077442217,-500.0,0.0001378,2]
[353818129,1740077442226,-500.0,0.0001378,2]
[353818130,1740077442235,-500.0,0.0001378,2]
[353818131,1740077442245,-500.0,0.0001378,2]
[353818132,1740077442254,-500.0,0.0001378,2]
[353818133,1740077442266,-497.16,0.0001378,2]
[353818134,1740077442275,-500.0,0.0001378,2]
[353818135,1740077442285,-500.0,0.0001378,2]
[353818136,1740077442294,-500.0,0.0001378,2]
[353818137,1740077442304,-500.0,0.0001378,2]
[353818138,1740077442313,-500.0,0.0001378,2]
[353818139,1740077442322,-500.0,0.0001378,2]
[353818140,1740077442331,-500.0,0.0001378,2]
[353818141,1740077442340,-500.0,0.0001378,2]
[353818142,1740077442349,-358.75927071,0.0001378,2]
[353818143,1740077442358,-500.0,0.0001378,2]
[353818144,1740077442367,-664.37,0.0001378,2]
[353818145,1740077442377,-500.0,0.0001378,2]
[353818146,1740077442386,-500.0,0.0001378,2]
[353818147,1740077442396,-500.0,0.0001378,2]
[353818148,1740077442405,-500.0,0.0001378,2]
[353818149,1740077442415,-868.35,0.0001378,2]
[353818150,1740077442424,-500.0,0.0001378,2]
[353818151,1740077442434,-500.0,0.0001378,2]
[353818152,1740077442443,-218.58435177,0.0001378,2]
[353818153,1740077442454,-500.0,0.0001378,2]
[353818154,1740077442463,-500.0,0.0001378,2]
[353818155,1740077442472,-500.0,0.0001378,2]
[353818156,1740077442482,-530.01,0.0001378,2]
[353818157,1740077442491,-1441.13,0.0001378,2]
[353818158,1740077442500,-557.02,0.0001378,2]
[353818159,1740077442511,-500.0,0.0001378,2]
[353818160,1740077442520,-500.0,0.0001378,2]
[353818161,1740077442529,-500.0,0.0001378,2]
[353818162,1740077442538,-500.0,0.0001378,2]
[353818163,1740077442547,-500.0,0.0001378,2]